[Event "WSCC 65 Women 2017"]
[Site "?"]
[Date "2017.11.17"]
[Round "8"]
[White "Gaprindashvili, Nona"]
[Black "Kuznetsova, Luba"]
[Result "1-0"]
[ECO "A53"]
[WhiteElo "2306"]
[BlackElo "2008"]
[PlyCount "107"]
[EventDate "2017.??.??"]
[EventType "swiss"]
[EventCountry "ITA"]
[SourceTitle "Acqui Terme"]
[TimeControl "40/5400+30:1800+30"]
[WhiteClock "1:00:53"]
[BlackClock "0:08:59"]

1. d4 {[%emt 0:00:00]} Nf6 {[%emt 0:00:08]} 2. c4 {[%emt 0:00:00]} d6 {[%emt 0:00:29]} 3. Nc3 {[%emt 0:00:00]} g6 {[%emt 0:00:27]} 4. e4 {[%emt 0:00:08]} c6 {[%emt 0:00:14]} 5. f3 {[%emt 0:02:59]} Bg7 {[%emt 0:00:58]} 6. Be3 {[%emt 0:00:31]} Qc7 {[%emt 0:01:42]} 7. g4 {[%emt 0:01:09]} h5 {[%emt 0:03:03]} 8. g5 {[%emt 0:01:45]} Ng8 {[%emt 0:05:17]} 9. Nh3 {[%emt 0:05:06]} Nd7 {[%emt 0:05:52]} 10. Qd2 {[%emt 0:04:35]} e5 {[%emt 0:05:59]} 11. d5 {[%emt 0:02:46]} c5 {[%emt 0:00:43]} 12. Nf2 {[%emt 0:00:12]} a6 {[%emt 0:04:49]} 13. Be2 {[%emt 0:02:29]} Ne7 {[%emt 0:01:29]} 14. O-O {[%emt 0:00:15]} O-O {[%emt 0:00:43]} 15. Kh1 {[%emt 0:00:14]} Rb8 {[%emt 0:02:31]} 16. a4 {[%emt 0:06:58]} b6 17. Nd3 Qd8 {[%emt 0:12:19]} 18. Qe1 {[%emt 0:01:19]} Bb7 {[%emt 0:02:26]} 19. Qg3 {[%emt 0:00:32]} Qc7 {[%emt 0:02:58]} 20. Rae1 {[%emt 0:00:56]} Rbe8 {[%emt 0:00:31]} 21. Bd1 {[%emt 0:05:05]} Rd8 {[%emt 0:02:51]} 22. Bb3 {[%emt 0:04:04]} Bc8 {[%emt 0:01:48]} 23. Rf2 {[%emt 0:03:01]} Bb7 {[%emt 0:00:41]} 24. Rd2 {[%emt 0:00:12]} Qb8 {[%emt 0:01:33]} 25. Bd1 {[%emt 0:01:35]} Bc8 {[%emt 0:01:06]} 26. Be2 {[%emt 0:00:26]} Rde8 {[%emt 0:07:06]} 27. Bf1 {[%emt 0:00:11]} Rd8 {[%emt 0:00:36]} 28. Rb1 {[%emt 0:02:48]} a5 {[%emt 0:07:29]} 29. Nb5 {[%emt 0:00:34]} Ba6 {[%emt 0:00:18]} 30. b3 Bxb5 {[%emt 0:05:18]} 31. cxb5 {[%emt 0:00:05]} Nc8 {[%emt 0:00:51]} 32. Nb2 {[%emt 0:00:14]} Rde8 {[%emt 0:00:57]} 33. Bh3 {[%emt 0:00:27]} Qc7 {[%emt 0:01:15]} 34. Nc4 {[%emt 0:00:03]} Kh7 {[%emt 0:01:02]} 35. Rf1 {[%emt 0:01:38]} Re7 {[%emt 0:02:55]} 36. Rdf2 {[%emt 0:04:30]} Kg8 {[%emt 0:00:10]} 37. Bg2 {[%emt 0:00:43]} Ree8 {[%emt 0:03:05]} 38. Re2 {[%emt 0:01:18]} Re7 {[%emt 0:02:26]} 39. Bh3 {[%emt 0:01:24]} Ree8 {[%emt 0:00:46]} 40. Qh4 {[%emt 0:03:10]} Re7 {[%emt 0:31:35]} 41. Bd2 {[%emt 0:31:54]} Ree8 {[%emt 0:06:34]} 42. Bc3 {[%emt 0:00:16]} Re7 {[%emt 0:04:14]} 43. Bb2 {[%emt 0:00:12]} Ree8 {[%emt 0:01:08]} 44. Qe1 {[%emt 0:00:14]} Kh7 {[%emt 0:00:00]} 45. Ref2 {[%emt 0:00:00]} Re7 {[%emt 0:00:00]} 46. Qd2 {[%emt 0:00:00]} Ree8 {[%emt 0:00:00]} 47. Bc3 {[%emt 0:00:00]} Re7 {[%emt 0:00:00]} 48. Qb2 {[%emt 0:00:00]} f5 {[%emt 0:00:00]} 49. gxf6 {[%emt 0:00:00]} Bxf6 {[%emt 0:00:00]} 50. Rg2 {[%emt 0:00:00]} Rg7 {[%emt 0:00:00]} 51. Bd2 {[%emt 0:00:00]} Qd8 {[%emt 0:00:00]} 52. Qc1 {[%emt 0:00:00]} g5 {[%emt 0:00:00]} 53. Bf5+ {[%emt 0:00:00]} Kh8 {[%emt 0:00:00]} 54. Rfg1 {[%emt 0:00:00]} 1-0

[Event "WSCC 65 Women 2017"]
[Site "?"]
[Date "2017.11.17"]
[Round "8"]
[White "Fatalibekova, Elena"]
[Black "Iskichekova, Nadezhda"]
[Result "1-0"]
[ECO "C10"]
[WhiteElo "2202"]
[BlackElo "1726"]
[PlyCount "129"]
[EventDate "2017.??.??"]
[EventType "swiss"]
[EventCountry "ITA"]
[SourceTitle "Acqui Terme"]
[TimeControl "40/5400+30:1800+30"]
[WhiteClock "1:03:33"]
[BlackClock "0:09:45"]

1. e4 {[%emt 0:00:00]} e6 {[%emt 0:00:35]} 2. d4 {[%emt 0:00:00]} d5 {[%emt 0:00:09]} 3. Nc3 {[%emt 0:00:00]} dxe4 {[%emt 0:00:04]} 4. Nxe4 {[%emt 0:00:00]} Bd7 {[%emt 0:00:05]} 5. Bd3 {[%emt 0:01:37]} Bc6 {[%emt 0:00:11]} 6. Nf3 {[%emt 0:00:10]} Nd7 {[%emt 0:00:06]} 7. O-O {[%emt 0:02:08]} Ngf6 {[%emt 0:00:06]} 8. Nxf6+ {[%emt 0:03:03]} Nxf6 {[%emt 0:00:23]} 9. Ne5 {[%emt 0:04:33]} Qd5 {[%emt 0:09:07]} 10. Nxc6 {[%emt 0:01:09]} Qxc6 {[%emt 0:00:33]} 11. c4 {[%emt 0:06:49]} Qd7 {[%emt 0:01:30]} 12. Be3 {[%emt 0:05:07]} Be7 {[%emt 0:00:46]} 13. Qe2 {[%emt 0:10:06]} O-O {[%emt 0:00:16]} 14. Rfd1 {[%emt 0:00:04]} c6 {[%emt 0:00:33]} 15. a3 {[%emt 0:01:37]} Rfd8 {[%emt 0:01:28]} 16. h3 {[%emt 0:03:56]} Qc7 {[%emt 0:05:58]} 17. Rac1 {[%emt 0:00:23]} Kf8 {[%emt 0:02:19]} 18. Qf3 h6 {[%emt 0:05:34]} 19. g4 {[%emt 0:04:57]} Qd7 {[%emt 0:04:21]} 20. h4 {[%emt 0:04:08]} e5 {[%emt 0:13:44]} 21. Bf5 {[%emt 0:00:41]} Qd6 {[%emt 0:12:43]} 22. g5 {[%emt 0:00:09]} hxg5 {[%emt 0:00:42]} 23. hxg5 {[%emt 0:00:05]} Ng8 {[%emt 0:04:54]} 24. c5 {[%emt 0:11:02]} Qd5 {[%emt 0:07:51]} 25. Be4 {[%emt 0:00:13]} Qe6 {[%emt 0:01:24]} 26. d5 {[%emt 0:00:36]} cxd5 {[%emt 0:00:28]} 27. Bxd5 {[%emt 0:00:02]} Qg6 {[%emt 0:00:21]} 28. Be4 {[%emt 0:00:14]} Rxd1+ {[%emt 0:13:05]} 29. Rxd1 {[%emt 0:00:03]} f5 {[%emt 0:00:48]} 30. Bxf5 {[%emt 0:00:54]} Qf7 {[%emt 0:00:33]} 31. Be4 {[%emt 0:03:45]} Qxf3 {[%emt 0:03:00]} 32. Bxf3 {[%emt 0:00:02]} Rd8 {[%emt 0:04:51]} 33. Rxd8+ {[%emt 0:00:25]} Bxd8 {[%emt 0:00:01]} 34. Bxb7 {[%emt 0:00:09]} a5 {[%emt 0:01:30]} 35. Be4 {[%emt 0:03:25]} Ne7 {[%emt 0:02:07]} 36. b4 {[%emt 0:01:42]} axb4 {[%emt 0:00:25]} 37. axb4 {[%emt 0:00:02]} Ke8 {[%emt 0:01:19]} 38. Kf1 {[%emt 0:03:32]} Kd7 {[%emt 0:00:22]} 39. Ke2 {[%emt 0:00:02]} Ke6 {[%emt 0:00:51]} 40. Kd3 {[%emt 0:01:19]} Nd5 {[%emt 0:31:21]} 41. Bd2 {[%emt 0:31:42]} Nf4+ {[%emt 0:00:51]} 42. Bxf4 {[%emt 0:02:17]} exf4 {[%emt 0:00:02]} 43. g6 {[%emt 0:00:01]} Bh4 {[%emt 0:00:00]} 44. f3 {[%emt 0:00:00]} Bf2 {[%emt 0:00:00]} 45. Kc4 {[%emt 0:00:00]} Kd7 {[%emt 0:00:00]} 46. b5 {[%emt 0:00:00]} Kc7 {[%emt 0:00:00]} 47. b6+ {[%emt 0:00:00]} Kc8 {[%emt 0:00:00]} 48. Kb5 {[%emt 0:00:00]} Bh4 {[%emt 0:00:00]} 49. c6 {[%emt 0:00:00]} Bd8 {[%emt 0:02:20]} 50. Bf5+ {[%emt 0:00:00]} Kb8 {[%emt 0:00:03]} 51. c7+ {[%emt 0:00:00]} Bxc7 {[%emt 0:00:01]} 52. bxc7+ {[%emt 0:00:00]} Kxc7 {[%emt 0:00:04]} 53. Kc5 {[%emt 0:00:00]} Kd8 {[%emt 0:00:02]} 54. Kd6 {[%emt 0:00:00]} Ke8 {[%emt 0:00:02]} 55. Ke5 {[%emt 0:00:00]} Ke7 {[%emt 0:00:02]} 56. Kxf4 {[%emt 0:00:00]} Kf6 {[%emt 0:00:00]} 57. Be4 {[%emt 0:00:00]} Ke6 {[%emt 0:00:12]} 58. Kg5 {[%emt 0:00:00]} Ke5 {[%emt 0:00:03]} 59. Bb1 {[%emt 0:00:00]} Ke6 {[%emt 0:00:13]} 60. f4 {[%emt 0:00:00]} Ke7 {[%emt 0:00:28]} 61. f5 {[%emt 0:00:00]} Kf8 {[%emt 0:00:23]} 62. f6 {[%emt 0:00:00]} Kg8 {[%emt 0:00:09]} 63. fxg7 {[%emt 0:00:00]} Kxg7 {[%emt 0:00:02]} 64. Kf5 {[%emt 0:00:00]} Kg8 {[%emt 0:01:24]} 65. Kf6 {[%emt 0:00:00]} 1-0

[Event "WSCC 65 Women 2017"]
[Site "?"]
[Date "2017.11.17"]
[Round "8"]
[White "Titorenko, Natalia I"]
[Black "Sorokina, Tamara"]
[Result "1-0"]
[ECO "B42"]
[WhiteElo "2146"]
[BlackElo "2055"]
[PlyCount "83"]
[EventDate "2017.??.??"]
[EventType "swiss"]
[EventCountry "ITA"]
[SourceTitle "Acqui Terme"]
[TimeControl "40/5400+30:1800+30"]
[WhiteClock "0:02:09"]
[BlackClock "0:32:49"]

1. e4 {[%emt 0:00:00]} c5 {[%emt 0:00:07]} 2. Nf3 {[%emt 0:00:00]} e6 {[%emt 0:00:33]} 3. d4 {[%emt 0:00:14]} cxd4 {[%emt 0:00:07]} 4. Nxd4 {[%emt 0:00:02]} a6 {[%emt 0:00:08]} 5. Bd3 {[%emt 0:00:25]} Ne7 {[%emt 0:00:15]} 6. O-O {[%emt 0:02:08]} Nbc6 {[%emt 0:02:27]} 7. Nf3 {[%emt 0:13:21]} Ng6 {[%emt 0:03:13]} 8. c4 {[%emt 0:06:25]} Be7 {[%emt 0:01:05]} 9. Nc3 {[%emt 0:04:44]} d6 {[%emt 0:00:19]} 10. Be3 {[%emt 0:06:10]} Bd7 {[%emt 0:01:03]} 11. Na4 {[%emt 0:05:09]} Qc7 12. Bb6 {[%emt 0:23:14]} Qc8 {[%emt 0:06:07]} 13. Rc1 {[%emt 0:01:20]} O-O {[%emt 0:00:40]} 14. c5 {[%emt 0:05:59]} d5 {[%emt 0:01:05]} 15. exd5 {[%emt 0:04:41]} exd5 {[%emt 0:00:55]} 16. Nc3 {[%emt 0:01:00]} Be6 {[%emt 0:08:41]} 17. Bxg6 {[%emt 0:02:46]} hxg6 {[%emt 0:00:01]} 18. Nxd5 {[%emt 0:00:26]} Bxd5 {[%emt 0:00:09]} 19. Qxd5 {[%emt 0:00:02]} Bf6 {[%emt 0:00:06]} 20. b3 {[%emt 0:03:10]} Re8 {[%emt 0:10:37]} 21. Rcd1 {[%emt 0:03:55]} Re7 {[%emt 0:06:48]} 22. h3 {[%emt 0:02:34]} Qf8 {[%emt 0:05:51]} 23. Rfe1 {[%emt 0:03:03]} Rae8 {[%emt 0:04:20]} 24. Kf1 {[%emt 0:02:47]} Rxe1+ {[%emt 0:05:39]} 25. Rxe1 {[%emt 0:00:02]} Rxe1+ {[%emt 0:00:06]} 26. Nxe1 {[%emt 0:01:06]} Qe7 {[%emt 0:00:13]} 27. Nc2 {[%emt 0:01:07]} g5 {[%emt 0:02:59]} 28. Ne3 {[%emt 0:02:59]} g6 {[%emt 0:00:07]} 29. a3 {[%emt 0:02:02]} Kg7 {[%emt 0:01:42]} 30. Nc4 {[%emt 0:00:58]} Nd4 {[%emt 0:02:00]} 31. Ne3 {[%emt 0:00:25]} Nc6 {[%emt 0:00:41]} 32. b4 {[%emt 0:00:22]} Bd4 {[%emt 0:00:30]} 33. Ke2 {[%emt 0:00:59]} Bb2 {[%emt 0:02:35]} 34. a4 {[%emt 0:00:23]} Bf6 {[%emt 0:01:19]} 35. Qc4 {[%emt 0:00:57]} Qe5 {[%emt 0:02:03]} 36. b5 {[%emt 0:01:12]} axb5 {[%emt 0:00:30]} 37. axb5 {[%emt 0:00:02]} Qb2+ {[%emt 0:00:06]} 38. Nc2 {[%emt 0:01:15]} Nd4+ {[%emt 0:00:22]} 39. Kd3 {[%emt 0:00:22]} Nxc2 {[%emt 0:00:21]} 40. Qxc2 {[%emt 0:00:02]} Qxb5+ {[%emt 0:30:07]} 41. Qc4 {[%emt 0:30:33]} Qb1+ {[%emt 0:02:14]} 42. Ke2 1-0

[Event "WSCC 65 Women 2017"]
[Site "?"]
[Date "2017.11.18"]
[Round "9"]
[White "Gaprindashvili, Nona"]
[Black "Serjmyadag, Damdin"]
[Result "1-0"]
[ECO "E73"]
[WhiteElo "2306"]
[BlackElo "1934"]
[PlyCount "27"]
[EventDate "2017.??.??"]
[EventType "swiss"]
[EventCountry "ITA"]
[SourceTitle "Acqui Terme"]
[TimeControl "40/5400+30:1800+30"]
[WhiteClock "1:22:12"]
[BlackClock "1:19:31"]

1. d4 {[%emt 0:00:00]} Nf6 {[%emt 0:00:37]} 2. c4 {[%emt 0:00:00]} g6 {[%emt 0:00:06]} 3. Nc3 {[%emt 0:00:00]} Bg7 {[%emt 0:00:08]} 4. e4 {[%emt 0:00:03]} d6 {[%emt 0:00:05]} 5. Be2 {[%emt 0:00:07]} Nc6 {[%emt 0:01:16]} 6. d5 {[%emt 0:01:00]} Ne5 {[%emt 0:00:37]} 7. f4 {[%emt 0:02:14]} Ned7 {[%emt 0:01:29]} 8. Nf3 {[%emt 0:01:06]} c5 {[%emt 0:00:25]} 9. e5 {[%emt 0:06:57]} Ng4 {[%emt 0:06:26]} 10. e6 {[%emt 0:00:46]} fxe6 {[%emt 0:02:35]} 11. Ng5 {[%emt 0:00:43]} Bxc3+ {[%emt 0:02:26]} 12. bxc3 {[%emt 0:00:15]} Ngf6 {[%emt 0:00:32]} 13. dxe6 {[%emt 0:00:58]} Nf8 {[%emt 0:00:47]} 14. Qa4+ {[%emt 0:00:39]} 1-0

[Event "WSCC 65 Women 2017"]
[Site "?"]
[Date "2017.11.18"]
[Round "9"]
[White "Sorokina, Tamara"]
[Black "Fatalibekova, Elena"]
[Result "1/2-1/2"]
[ECO "D02"]
[WhiteElo "2055"]
[BlackElo "2202"]
[PlyCount "88"]
[EventDate "2017.??.??"]
[EventType "swiss"]
[EventCountry "ITA"]
[SourceTitle "Acqui Terme"]
[TimeControl "40/5400+30:1800+30"]
[WhiteClock "0:29:52"]
[BlackClock "0:35:07"]

1. Nf3 {[%emt 0:00:00]} d5 {[%emt 0:00:08]} 2. d4 {[%emt 0:00:00]} c5 {[%emt 0:00:35]} 3. e3 {[%emt 0:00:00]} Bg4 {[%emt 0:00:19]} 4. c3 {[%emt 0:00:56]} e6 {[%emt 0:02:01]} 5. Qa4+ {[%emt 0:03:21]} Nd7 {[%emt 0:01:24]} 6. Ne5 {[%emt 0:00:29]} Ngf6 {[%emt 0:00:29]} 7. Nxg4 {[%emt 0:01:53]} Nxg4 {[%emt 0:00:02]} 8. dxc5 {[%emt 0:01:41]} Nge5 {[%emt 0:00:18]} 9. b4 {[%emt 0:02:34]} a5 {[%emt 0:01:26]} 10. Qb3 {[%emt 0:01:20]} b6 {[%emt 0:03:40]} 11. f4 {[%emt 0:02:43]} Nc6 {[%emt 0:03:55]} 12. cxb6 {[%emt 0:03:08]} Qxb6 {[%emt 0:00:56]} 13. b5 {[%emt 0:01:42]} a4 {[%emt 0:03:24]} 14. Qc2 {[%emt 0:00:10]} Na5 {[%emt 0:01:36]} 15. Qxa4 {[%emt 0:12:52]} Bc5 {[%emt 0:00:02]} 16. Kf2 {[%emt 0:00:55]} Nf6 {[%emt 0:00:31]} 17. Kf3 {[%emt 0:02:11]} O-O {[%emt 0:00:22]} 18. Qc2 {[%emt 0:00:44]} Ne4 {[%emt 0:01:16]} 19. a4 {[%emt 0:00:25]} Rac8 {[%emt 0:00:20]} 20. Bd3 {[%emt 0:00:59]} f5 {[%emt 0:00:33]} 21. Re1 {[%emt 0:03:13]} g5 {[%emt 0:03:28]} 22. g3 {[%emt 0:02:07]} e5 {[%emt 0:02:44]} 23. Kg2 {[%emt 0:01:47]} g4 {[%emt 0:04:31]} 24. Qa2 {[%emt 0:08:02]} Rcd8 {[%emt 0:01:04]} 25. Qc2 {[%emt 0:06:19]} Qh6 {[%emt 0:00:23]} 26. Kg1 {[%emt 0:01:57]} exf4 {[%emt 0:00:22]} 27. gxf4 {[%emt 0:02:46]} Qxf4 {[%emt 0:01:07]} 28. Ra2 {[%emt 0:01:33]} Ng5 {[%emt 0:04:39]} 29. Kh1 {[%emt 0:01:20]} Qe5 {[%emt 0:01:17]} 30. c4 {[%emt 0:01:08]} d4 {[%emt 0:04:43]} 31. Qe2 {[%emt 0:01:24]} dxe3 {[%emt 0:02:16]} 32. Bxe3 {[%emt 0:01:38]} Bxe3 {[%emt 0:01:28]} 33. Qxe3 {[%emt 0:00:09]} Qxe3 {[%emt 0:07:51]} 34. Rxe3 {[%emt 0:00:01]} f4 {[%emt 0:00:01]} 35. Re5 {[%emt 0:00:14]} Nf3 {[%emt 0:00:12]} 36. Rd5 {[%emt 0:00:13]} Rde8 {[%emt 0:01:04]} 37. Re2 {[%emt 0:04:07]} Rxe2 {[%emt 0:08:00]} 38. Bxe2 Re8 39. Nc3 {[%emt 0:03:37]} Re3 40. Rd3 Nxc4 41. Rxe3 Nxe3 42. b6 Ne5 43. a5 f3 44. b7 Nd7 {[%emt 0:38:56]} 1/2-1/2

[Event "WSCC 65 Women 2017"]
[Site "?"]
[Date "2017.11.18"]
[Round "9"]
[White "Kabanova, Irina"]
[Black "Khmiadashvili, Tamar"]
[Result "0-1"]
[ECO "B12"]
[WhiteElo "1816"]
[BlackElo "1982"]
[PlyCount "138"]
[EventDate "2017.??.??"]
[EventType "swiss"]
[EventCountry "ITA"]
[SourceTitle "Acqui Terme"]
[TimeControl "40/5400+30:1800+30"]
[WhiteClock "0:03:20"]
[BlackClock "0:02:39"]

1. e4 {[%emt 0:00:00]} c6 {[%emt 0:00:19]} 2. d4 {[%emt 0:00:00]} g6 {[%emt 0:00:44]} 3. Nc3 {[%emt 0:00:35]} Bg7 {[%emt 0:01:54]} 4. Be3 {[%emt 0:01:03]} d6 {[%emt 0:02:44]} 5. Qd2 {[%emt 0:00:38]} b5 {[%emt 0:01:15]} 6. a3 {[%emt 0:01:54]} a6 {[%emt 0:00:20]} 7. Bd3 {[%emt 0:04:47]} Nd7 {[%emt 0:01:05]} 8. Nge2 {[%emt 0:11:48]} Nb6 {[%emt 0:02:27]} 9. Nd1 {[%emt 0:02:59]} Nc4 {[%emt 0:14:20]} 10. Bxc4 {[%emt 0:00:17]} bxc4 {[%emt 0:00:04]} 11. c3 {[%emt 0:01:27]} d5 {[%emt 0:03:04]} 12. f3 {[%emt 0:01:17]} h5 {[%emt 0:03:17]} 13. Nf2 {[%emt 0:04:10]} Nf6 {[%emt 0:04:52]} 14. e5 {[%emt 0:01:37]} Ng8 {[%emt 0:03:40]} 15. h4 {[%emt 0:08:35]} Nh6 {[%emt 0:08:53]} 16. Ng3 {[%emt 0:03:50]} Rb8 {[%emt 0:05:22]} 17. O-O {[%emt 0:04:08]} Qb6 {[%emt 0:02:46]} 18. Nd1 {[%emt 0:22:43]} Nf5 {[%emt 0:01:02]} 19. Nxf5 {[%emt 0:00:28]} Bxf5 {[%emt 0:00:07]} 20. Rf2 {[%emt 0:00:58]} a5 {[%emt 0:09:57]} 21. a4 {[%emt 0:03:38]} Kd7 {[%emt 0:09:34]} 22. Bf4 {[%emt 0:01:48]} e6 {[%emt 0:01:04]} 23. Bg5 {[%emt 0:02:24]} c5 {[%emt 0:05:01]} 24. dxc5 {[%emt 0:06:30]} Qxc5 {[%emt 0:00:40]} 25. Be3 {[%emt 0:00:51]} Qc7 {[%emt 0:01:02]} 26. f4 {[%emt 0:00:58]} Bf8 {[%emt 0:01:18]} 27. Bd4 {[%emt 0:00:28]} Be7 {[%emt 0:00:52]} 28. g3 {[%emt 0:00:16]} Rb7 {[%emt 0:03:42]} 29. Ne3 {[%emt 0:00:24]} Bd3 {[%emt 0:01:54]} 30. Nxd5 {[%emt 0:00:31]} Qc6 {[%emt 0:08:16]} 31. Nxe7 {[%emt 0:00:43]} Kxe7 {[%emt 0:00:01]} 32. Qe3 {[%emt 0:02:31]} Rc8 {[%emt 0:01:44]} 33. Kh2 {[%emt 0:05:48]} Ke8 {[%emt 0:01:17]} 34. Rd2 {[%emt 0:04:58]} Rcb8 {[%emt 0:00:22]} 35. Qf2 {[%emt 0:00:04]} Rb3 {[%emt 0:00:30]} 36. Bc5 {[%emt 0:00:25]} R8b7 {[%emt 0:01:31]} 37. Ba3 {[%emt 0:00:38]} Qd5 {[%emt 0:00:52]} 38. Rad1 {[%emt 0:00:11]} Qc6 {[%emt 0:00:27]} 39. Qe3 {[%emt 0:00:14]} Rd7 {[%emt 0:00:19]} 40. Rxd3 {[%emt 0:00:28]} cxd3 {[%emt 0:30:17]} 41. Rxd3 {[%emt 0:30:05]} Rbb7 {[%emt 0:00:36]} 42. Qd2 {[%emt 0:00:17]} Rxd3 43. Qxd3 {[%emt 0:00:03]} Rd7 {[%emt 0:01:08]} 44. Bd6 {[%emt 0:01:21]} Rb7 {[%emt 0:00:00]} 45. Qc2 {[%emt 0:00:00]} Qc4 {[%emt 0:00:00]} 46. Ba3 {[%emt 0:00:00]} Rd7 {[%emt 0:00:00]} 47. Bd6 {[%emt 0:00:00]} Rb7 {[%emt 0:00:00]} 48. Ba3 {[%emt 0:00:00]} Kd7 {[%emt 0:00:00]} 49. Qd2+ {[%emt 0:00:00]} Kc8 {[%emt 0:00:00]} 50. Qc2 {[%emt 0:00:00]} Rc7 {[%emt 0:00:00]} 51. Bd6 {[%emt 0:00:00]} Rc6 {[%emt 0:00:00]} 52. Ba3 {[%emt 0:00:00]} Kb7 {[%emt 0:00:00]} 53. Be7 {[%emt 0:00:00]} Ka6 {[%emt 0:00:00]} 54. Ba3 {[%emt 0:00:00]} Rb6 55. Be7 {[%emt 0:00:00]} Rb3 {[%emt 0:01:16]} 56. Ba3 {[%emt 0:00:00]} Qxa4 {[%emt 0:00:58]} 57. Qg2 {[%emt 0:00:00]} Rb7 58. Qd2 {[%emt 0:00:00]} Rd7 {[%emt 0:02:25]} 59. Bd6 {[%emt 0:00:00]} Qb5 {[%emt 0:00:36]} 60. Qc2 {[%emt 0:00:00]} Rb7 {[%emt 0:00:44]} 61. Ba3 {[%emt 0:00:00]} Rc7 {[%emt 0:00:49]} 62. Qg2 {[%emt 0:00:00]} Qd5 63. Qe2+ {[%emt 0:00:00]} Kb7 {[%emt 0:00:36]} 64. Bd6 {[%emt 0:00:00]} Rc4 {[%emt 0:00:20]} 65. Qc2 {[%emt 0:08:07]} Re4 {[%emt 0:00:35]} 66. b4 {[%emt 0:03:00]} Re1 {[%emt 0:00:59]} 67. Qg2 {[%emt 0:00:53]} Qxg2+ {[%emt 0:00:21]} 68. Kxg2 {[%emt 0:00:02]} a4 {[%emt 0:00:34]} 69. b5 {[%emt 0:00:20]} Ra1 {[%emt 0:01:29]} 0-1